Cogmind - Beta 15 @@@ ROGUE MODE // 2025.05.11 @ 19:25:34 Player: grayrest Result: Destroyed by G-47 Trooper with Particle Gun Performance ------------- Evolutions (2) 1000 Regions Visited (5) 1000 Robots Destroyed (53) 265 Value Destroyed (1377) 1377 Prototype IDs (23) 460 Alien Tech Used (0) 0 Bonus (408) 408 TOTAL SCORE: 4510 Bonus ------- High Alert Combat Kills 108 Aligned with FarCom 300 Cogmind --------- Core Integrity 0/550 Matter 239/300 Energy 99/100 System Corruption 1% Temperature Cool (9) Movement Core (50) Location -8/Materials Parts ------- > --- POWER (1) -------- (None) > --- PROPULSION (3) --- (None) > --- UTILITY (5) ------ (None) > --- WEAPON (2) ------- (None) > --- INVENTORY (5) ---- Decoy Drone Bay AWS/Thermal Mini Grenade Launcher Peak State ------------ > --- POWER ------------ Nuclear Core > --- PROPULSION ------- Advanced Treads Wheel Compact Wheel > --- UTILITY ---------- Heat Sink Large Storage Unit Matter Filter Dynamic Insulation System > --- WEAPON ----------- Gauss Rifle Heavy Hammer > --- INVENTORY -------- Improved Deuterium Engine Compact Matter Pod Core Analyzer Decoy Drone Bay Heavy EM Pulse Gun Heavy EM Pulse Gun Heavy EM Pulse Gun AWS/Thermal Heavy Particle Cannon Gauss Cannon Mini Grenade Launcher [Rating: 29] Favorites ----------- Power Light Ion Engine Engine Light Ion Engine Power Core Nuclear Core Propulsion Light Treads Treads Light Treads Wheel Wheel Utility Large Storage Unit Device Heat Sink Storage Large Storage Unit Processor Signal Interpreter Protection Light Armor Plating Weapon Heavy EM Pulse Gun Energy Gun Heavy EM Pulse Gun Ballistic Gun Gauss Rifle Ballistic Cannon Gauss Cannon Launcher Mini Grenade Launcher Impact Weapon Heavy Hammer Build | -11 -10 -10 -10 -9 -8 ------- Run | Yrd Mat Min Exi Min Mat Slots Evolved 4 | . . . . . 4 Power . | . . . . . . Propulsion 1 | . . . . . 1 Utility 3 | . . . . . 3 Weapon . | . . . . . . Parts Attached 34 | 6 12 . . 4 12 Power 6 | 1 2 . . 1 2 Engine 5 | 1 2 . . 1 1 Core 1 | . . . . . 1 Reactor . | . . . . . . Propulsion 9 | 2 2 . . 2 3 Treads 5 | 1 2 . . 1 1 Leg . | . . . . . . Wheel 4 | 1 . . . 1 2 Hover . | . . . . . . Flight . | . . . . . . Utility 9 | 1 5 . . 1 2 Device 6 | 1 3 . . . 2 Storage 1 | . 1 . . . . Processor 1 | . 1 . . . . Hackware . | . . . . . . Protection 1 | . . . . 1 . Artifact . | . . . . . . Weapon 10 | 2 3 . . . 5 Energy Gun 3 | 1 2 . . . . Energy Cannon . | . . . . . . Ballistic Gun 3 | 1 1 . . . 1 Ballistic Cannon 1 | . . . . . 1 Launcher 2 | . . . . . 2 Special Weapon . | . . . . . . Impact Weapon 1 | . . . . . 1 Slashing Weapon . | . . . . . . Piercing Weapon . | . . . . . . Special Melee Weapon . | . . . . . . Unidentified Prototypes . | . . . . . . Parts Lost 18 | . 6 . . . 12 Power 3 | . 1 . . . 2 Propulsion 7 | . 2 . . . 5 Utility 4 | . 1 . . . 3 Weapon 4 | . 2 . . . 2 Highest Loss Streak 5 | . 5 . . . 4 To Critical Strikes . | . . . . . . Average Backups 9 | 2 6 10 11 12 10 Power . | 1 . . . . 1 Propulsion 1 | . 1 2 2 1 . Utility 3 | . 1 4 5 5 3 Weapon 4 | . 2 4 4 5 6 Tool/Special . | . . . . . . Unused Backups 15 | . . . . 6 9 Power . | . . . . . . Propulsion . | . . . . . . Utility 8 | . . . . 3 5 Weapon 7 | . . . . 3 4 Tool/Special . | . . . . . . Average Slot Usage (%) 93 | . 91 100 100 100 81 Engine 12 | . 14 14 14 14 5 Treads 22 | . 23 28 28 22 12 Wheel 2 | . 1 . . 5 5 Device 8 | . 10 . . 1 23 Storage 10 | . 7 14 14 14 9 Processor 7 | . 6 14 14 10 . Protection 1 | . . . . 2 4 Energy Gun 21 | . 24 28 28 28 . Ballistic Gun 2 | . 1 . . . 7 Impact Weapon 1 | . . . . . 7 Peak Build Rating 29 | 6 10 12 13 16 29 Average Rating 13 | 4 8 10 12 13 24 On Entrance 9 | . 6 10 12 13 16 Naked Turns 6 | . . . . . 6 Heaviest Build 43 | 7 30 29 29 36 43 Greatest Support 40 | 20 40 40 40 40 40 Greatest Overweight (x) 13 | . 1 . . 3 13 Average Overweight (x) . | . . . . 1 1 Largest Inventory Capacity 15 | 5 15 15 15 15 15 Average Capacity 13 | 5 10 15 15 15 14 Most Carried 15 | 4 10 12 14 15 15 Average Carried 10 | 2 6 10 12 14 12 Final Capacity 15 | 5 15 15 15 15 5 Final Carried 15 | 4 10 12 14 15 5 Class Distribution -------------------- 98% | Mutant Dominant Class ---------------- Mutant | -10/Materials Mutant | -10/Mines Mutant | -10/Exiles Mutant | -9/Mines Mutant | -8/Materials Resources | -11 -10 -10 -10 -9 -8 ----------- Run | Yrd Mat Min Exi Min Mat Matter Collected 1054 | 209 285 . . 60 500 Remotely . | . . . . . . Salvage Created 1528 | 75 459 79 . 125 790 Parts 96 | 11 25 5 . 11 44 Haulers Intercepted . | . . . . . . Recyclers Shooed 1 | . 1 . . . . Parts Field Recycled . | . . . . . . Retrieved Matter . | . . . . . . Parts Self-Destructed . | . . . . . . Prevented . | . . . . . . Kills | -11 -10 -10 -10 -9 -8 ------- Run | Yrd Mat Min Exi Min Mat Combat Hostiles Destroyed 40 | . 8 2 . 9 21 Guns 24 | . 8 2 . 6 8 Cannons 8 | . . . . . 8 AOE 8 | . . . . 3 5 Classes Destroyed 11 | 1 4 . . 2 4 Worker 3 | . 1 . . . 2 Builder 4 | . . . . . 4 Tunneler 5 | 4 1 . . . . Recycler 1 | . . . . . 1 Operator 1 | . 1 . . . . Watcher 2 | . 2 . . . . Swarmer 13 | . . . . 6 7 Grunt 17 | . 8 2 . . 7 Brawler 2 | . . . . . 2 Sentry 5 | . . . . . 5 Assembled 3 | . . . . 3 . Best Kill Streak 11 | 4 6 2 . 3 11 Combat Bots Only 8 | . 5 2 . 3 8 Max Kills in Single Turn 3 | 1 1 1 . 3 3 Gunslinging . | . . . . . . Exploded 3 | . . . . 3 2 Melee . | . . . . . . Uniques/NPCs Destroyed . | . . . . . . Combat | -11 -10 -10 -10 -9 -8 -------- Run | Yrd Mat Min Exi Min Mat Hostile Shots Fired 260 | . 79 . . 30 151 Missed 63 | . 17 . . 5 41 Hits 197 | . 62 . . 25 110 Melee 1 | . . . . 1 . Projectile 196 | . 62 . . 24 110 Critical Strikes 3 | . . . . 1 2 Part Disruptions 1 | . . . . 1 . Damage Taken 2886 | . 766 . . 248 1872 Core 676 | . 112 . . 12 552 Absorbed by Shields . | . . . . . . Core Remaining (%) 75 | 100 . . . 50 . Volleys Fired 141 | 5 54 2 . 20 60 Largest 2 | 2 2 2 . 2 1 Hottest 90 | 60 90 90 . 90 40 Shots Fired 206 | 10 92 4 . 40 60 Gun 172 | 10 92 4 . 40 26 Cannon 24 | . . . . . 24 Launcher 10 | . . . . . 10 Special . | . . . . . . Kinetic 88 | 5 33 . . . 50 Thermal 40 | 5 35 . . . . Explosive 10 | . . . . . 10 Electromagnetic 68 | . 24 4 . 40 . Robot Hit Streak 12 | 3 10 4 . 6 12 Robot Miss Streak 8 | 3 8 . . 3 3 Penetration Max 1 | . . . . . 1 Secondary Targets 4 | . 3 . . 1 . Max Gunslinging Chain 1 | . 1 . . 1 . Shots Hit Robots 118 | 5 50 3 . 20 40 Core Hits 78 | 4 23 2 . 11 38 Critical Kills 3 | . . . . . 3 Critical Parts Destroyed 1 | . . . . . 1 Critical Strikes 15 | . 1 . . 3 11 Destroy 3 | . . . . . 3 Blast 7 | . . . . . 7 Corrupt 4 | . 1 . . 3 . Smash 1 | . . . . . 1 Melee Attacks 22 | . . . . . 22 Impact 22 | . . . . . 22 Slashing . | . . . . . . Piercing . | . . . . . . Sneak Attacks 1 | . . . . . 1 Combat Hostiles . | . . . . . . Follow-up Attacks . | . . . . . . Damage Inflicted 3074 | 58 777 46 . 405 1788 Guns 1544 | 58 711 46 . 298 431 Cannons 565 | . . . . . 565 Explosions 882 | . 66 . . 107 709 Melee 83 | . . . . . 83 Ramming . | . . . . . . Kinetic 1277 | 25 256 . . . 996 Thermal 437 | 33 297 . . 107 . Explosive 709 | . . . . . 709 Electromagnetic 568 | . 224 46 . 298 . Impact 83 | . . . . . 83 Slashing . | . . . . . . Piercing . | . . . . . . Highest Corruption 1 | . . . . . 1 Average Corruption 1 | . . . . . 1 Corruption Purged . | . . . . . . Corruption Blocked . | . . . . . . Overload Shots . | . . . . . . Overflow Damage 117 | . . . . 14 103 Projectiles . | . . . . . . Explosions 34 | . . . . 14 20 Melee 83 | . . . . . 83 Knockbacks 1 | . . . . . 1 Impact . | . . . . . . Kinetic 1 | . . . . . 1 Secondary . | . . . . . . Self-Inflicted Damage 96 | . . . . . 96 Shots 3 | . . . . . 3 Rammed . | . . . . . . Targets Rammed . | . . . . . . Kicked . | . . . . . . Crushed . | . . . . . . Highest Temperature 260 | . 162 60 . 260 4 Average Temperature 68 | . 42 30 . 109 3 Received Heat Transfer 1111 | . 411 . . 106 594 Effects 1 | . . . . 1 . Interference 1 | . . . . 1 . Siege Activations . | . . . . . . Martial Activations . | . . . . . . Shielding Activations . | . . . . . . Robots Disrupted . | . . . . . . Combat Hostiles . | . . . . . . Robots Corrupted 1 | . . . . . 1 Combat Hostiles . | . . . . . . Parts Fried 1 | . 1 . . . . Impact Corruptions 3 | . . . . . 3 Robots Melted . | . . . . . . Combat Hostiles . | . . . . . . Parts Melted . | . . . . . . Heat Transferred 800 | 75 575 . . 150 . Parts Sabotaged . | . . . . . . Parts Stolen . | . . . . . . Parts Stripped . | . . . . . . Power Chain Reactions 2 | . 1 . . 1 . Alert | -11 -10 -10 -10 -9 -8 ------- Run | Yrd Mat Min Exi Min Mat Maximum Alert Level 2 | . . . . . 2 Low Security (%) 94 | 100 100 100 . 100 77 Level 1 1 | . . . . . 7 Level 2 3 | . . . . . 15 Level 3 . | . . . . . . Level 4 . | . . . . . . Level 5 . | . . . . . . High Security . | . . . . . . Max Security . | . . . . . . Peak Influence 612 | 10 75 53 . 73 612 Initial . | . . . . . . Average 38 | 1 8 12 . 15 120 Influence Increases 1361 | 20 260 53 . 173 855 Destroy 0b10 Robot/C 740 | . 160 40 . 120 420 Destroy 0b10 Robot/NC 80 | 20 25 . . . 35 Destroy Leader 154 | . 34 10 . 20 90 Allied During Kill 3 | . . 3 . . . Successful Hack 11 | . 11 . . . . Disable Machine 45 | . 30 . . . 15 Anti-Garrison Action 150 | . . . . . 150 Destroy Structure 73 | . . . . 3 70 Partial Spotted 15 | . . . . . 15 Lose Combat Pursuer 90 | . . . . 30 60 Influence Decreases 755 | 20 260 53 . 173 249 Time Decay 614 | 20 220 53 . 173 148 Lost Part 141 | . 40 . . . 101 Squads Dispatched 9 | . 2 . . 1 6 Investigation 3 | . 1 . . 1 1 Extermination . | . . . . . . Reinforcement 3 | . 1 . . . 2 Assault 3 | . . . . . 3 Garrison . | . . . . . . Intercept . | . . . . . . Searches Triggered . | . . . . . . Construction Impeded 1 | . . . . . 1 Haulers Reinforced . | . . . . . . Active Scanning Responses . | . . . . . . Cargo Convoy Interrupts . | . . . . . . Stealth | -11 -10 -10 -10 -9 -8 --------- Run | Yrd Mat Min Exi Min Mat Distress Signals 7 | . 1 . . . 6 Communications Jammed . | . . . . . . Distress Signals . | . . . . . . Times Spotted 71 | . 19 2 . 12 38 Peak Tracking Total 9 | . 5 2 . 3 9 Tactical Retreats 7 | . . . . 3 4 Traps | -11 -10 -10 -10 -9 -8 ------- Run | Yrd Mat Min Exi Min Mat Traps Triggered 4 | . 3 . . . 1 Indirectly . | . . . . . . Trap Hack Attempts . | . . . . . . Triggered . | . . . . . . Disarmed . | . . . . . . Reprogrammed . | . . . . . . Reused . | . . . . . . Traps Extracted . | . . . . . . Installed . | . . . . . . Triggered . | . . . . . . Machines | -11 -10 -10 -10 -9 -8 ---------- Run | Yrd Mat Min Exi Min Mat Machines Disabled 4 | . 2 . . . 2 Max in Single Turn 1 | . 1 . . . 1 Garrison Access 1 | . . . . . 1 Machines Repaired . | . . . . . . Machines Dismantled . | . . . . . . Machines Sabotaged . | . . . . . . Overloaded Fab Kills . | . . . . . . Hacking | -11 -10 -10 -10 -9 -8 --------- Run | Yrd Mat Min Exi Min Mat Machines Accessed 15 | . 6 1 4 1 3 Terminals 8 | . 6 . . . 2 Fabricators . | . . . . . . Repair Stations . | . . . . . . Recycling Units . | . . . . . . Scanalyzers . | . . . . . . Garrison Access 1 | . . . . . 1 Total Hacks 64 | . 13 1 41 1 8 Successful 50 | . 7 1 41 1 . Failed 14 | . 6 . . . 8 Catastrophic 4 | . 2 . . . 2 Database Lockouts . | . . . . . . Manual 12 | . 7 . 1 . 4 Terminals 19 | . 13 . . . 6 Fabricators . | . . . . . . Repair Stations . | . . . . . . Recycling Units . | . . . . . . Scanalyzers . | . . . . . . Garrison Access 2 | . . . . . 2 Terminal Hacks 47 | . 4 1 41 1 . Record 40 | . . . 40 . . Open Door 2 | . . 1 . 1 . Branch Access Points 1 | . 1 . . . . Terminal Index 1 | . 1 . . . . Hauler Manifests 1 | . 1 . . . . Zone Layout 1 | . 1 . . . . Proto ID Catalog 1 | . . . 1 . . Fabricator Hacks . | . . . . . . Repair Station Hacks . | . . . . . . Recycling Unit Hacks . | . . . . . . Scanalyzer . | . . . . . . Garrison Access Hacks . | . . . . . . Unauthorized Hacks 3 | . 3 . . . . Terminals 3 | . 3 . . . . Botnet 3 | . 3 . . . . Fabricators . | . . . . . . Repair Stations . | . . . . . . Recycling Units . | . . . . . . Scanalyzers . | . . . . . . Garrison Access . | . . . . . . Data Cores Recovered . | . . . . . . Used . | . . . . . . Hacking Detections 9 | . 6 . . . 3 Full Trace Events 1 | . . . . . 1 Feedback Events . | . . . . . . Feedback Blocked . | . . . . . . Robot Schematics Acquired . | . . . . . . Robots Built . | . . . . . . Authchips . | . . . . . . Time . | . . . . . . Total Robot Build Rating . | . . . . . . Part Schematics Acquired . | . . . . . . Parts Built . | . . . . . . Authchips . | . . . . . . Time . | . . . . . . Total Part Build Rating . | . . . . . . Parts Repaired . | . . . . . . Time . | . . . . . . Parts Recycled . | . . . . . . Recycled Matter . | . . . . . . Retrieved Matter . | . . . . . . Retrieved Components . | . . . . . . Parts Scanalyzed . | . . . . . . Part Schematics Acquired . | . . . . . . Parts Damaged . | . . . . . . Bothacking | -11 -10 -10 -10 -9 -8 ------------ Run | Yrd Mat Min Exi Min Mat Used RIF Installer . | . . . . . . Robots Hacked . | . . . . . . Non-combat . | . . . . . . Combat . | . . . . . . Robot Hacks Applied . | . . . . . . Relay Couplers Released 2 | . . . . . 2 Machine Destruction 2 | . . . . . 2 Fabnet Peak Effective % . | . . . . . . Robots Rewired . | . . . . . . Allies Hacked . | . . . . . . Hacks Repelled . | . . . . . . Allies | -11 -10 -10 -10 -9 -8 -------- Run | Yrd Mat Min Exi Min Mat Total Allies 3 | . . 2 . 1 . Largest Group 2 | . . 2 1 1 . Highest-Rated Group 50 | . . 50 31 31 . Highest-Rated Ally 31 | . . 31 31 31 . Total Orders . | . . . . . . Ally Attacks 7 | . . 3 . 4 . Total Damage 123 | . . 61 . 62 . Kills . | . . . . . . Allies Corrupted . | . . . . . . Allies Melted . | . . . . . . Intel | -11 -10 -10 -10 -9 -8 ------- Run | Yrd Mat Min Exi Min Mat Active Infowar (turns) 738 | 86 588 . . 64 . Terrain 414 | . 350 . . 64 . Seismic 324 | 86 238 . . . . Robot Analysis Total . | . . . . . . Derelict Logs Recovered 2 | . . 1 . 1 . Drone Launches . | . . . . . . Drone Recoveries . | . . . . . . Exploration | -11 -10 -10 -10 -9 -8 ------------- Run | Yrd Mat Min Exi Min Mat Turns Passed 4096 | 151 1266 264 722 849 844 Spaces Moved 2066 | 88 666 157 449 449 257 Core 18 | 1 4 . . . 13 Treads 1617 | 66 629 157 449 211 105 Legs . | . . . . . . Wheels 431 | 21 33 . . 238 139 Hover . | . . . . . . Flight . | . . . . . . Fastest Speed 50 | 50 80 160 160 110 50 Average Speed 153 | 139 155 160 160 142 159 Slowest Speed 700 | 160 160 160 160 240 700 Overloaded Moves . | . . . . . . Propulsion Burnouts . | . . . . . . Robots Hopped . | . . . . . . Potential Cave-ins 2 | . . . . . 2 Cave-ins Triggered 1 | . . . . . 1 Exploration Rate (%) 57 | 4 88 48 73 95 37 Regions Visited 5 Branch Regions 3 Pre-discovered Areas 1 | . . . 1 . . Known Exits Taken 3 | . 1 1 1 . . Unknown Exits Taken 2 | 1 . . . 1 . Scrap Searched 2 | . . . . 2 . Spaces Dug 26 | . . . . . 26 Terrain Destroyed 73 | . . . . 3 70 Melee 16 | . . . . . 16 Projectile 7 | . . . . . 7 AOE 50 | . . . . 3 47 Terrain Rammed . | . . . . . . Walls Destroyed . | . . . . . . Machines Disabled . | . . . . . . Actions | -11 -10 -10 -10 -9 -8 --------- Run | Yrd Mat Min Exi Min Mat Total 2734 | 103 800 166 453 622 590 Wait 414 | . 49 7 4 127 227 Move 2061 | 87 665 156 448 448 257 Hop . | . . . . . . Pick Up 35 | 5 12 1 1 11 5 Fast Attach 17 | 5 7 . . 1 4 Attach 13 | 1 4 . . . 8 Detach 2 | . 1 . . . 1 Swap 13 | . 4 . . 5 4 Drop 16 | . 4 . . 10 2 Fire 141 | 5 54 2 . 20 60 Melee 22 | . . . . . 22 Ram . | . . . . . . Kick . | . . . . . . Crush . | . . . . . . Escape Stasis . | . . . . . . Rewire . | . . . . . . Trap . | . . . . . . Miscellaneous . | . . . . . . Route ------- -11/Scrapyard -10/Materials (discovered 4 exits: *Mat x3 / *Min) -10/Mines (discovered 2 exits: *Mat / *Exi) -10/Exiles (discovered 2 exits: *Min x2) -9/Mines -8/Materials History --------- Turn | Location | Event 8 | -11/Scrapyard | Discovered new exit (range 15) 152 | -11/Scrapyard | Entered Materials 326 | -10/Materials | Build established: Mutant 328 | -10/Materials | Lost 5 parts (2n1u2w) 670 | -10/Materials | Discovered new exit (range 4) 706 | -10/Materials | Identified exit to Mines 787 | -10/Materials | Discovered new exit (range 16) 828 | -10/Materials | Identified exit to Materials 1034 | -10/Materials | Discovered exit to Materials (range 16) 1418 | -10/Materials | Entered Mines 1423 | -10/Mines | Learned Materials interactive machine intel 1552 | -10/Mines | Discovered exit to Materials (range 11) 1604 | -10/Mines | Found the Drone Emporium 1611 | -10/Mines | Found Prototype Device 1672 | -10/Mines | Deemed a non-threat by the Exiles lab entrance 1672 | -10/Mines | Discovered new exit (range 5) 1676 | -10/Mines | Identified exit to Exiles 1682 | -10/Mines | Entered Exiles 1682 | -10/Exiles | Accompanied by 1 ally 1708 | -10/Exiles | Discovered new exit (range 14) 1712 | -10/Exiles | Led the pair of lost Derelicts to a safe place 1766 | -10/Exiles | Met 8R-AWN 1795 | -10/Exiles | Met EX-HEX 1875 | -10/Exiles | Met EX-DEC 1922 | -10/Exiles | Learned location of Zion (-6) 1989 | -10/Exiles | Discovered new exit (range 14) 2008 | -10/Exiles | Identified exit to Mines 2133 | -10/Exiles | Met EX-BIN 2154 | -10/Exiles | Aligned with FarCom system 2155 | -10/Exiles | Given EX-Vault access code 2234 | -10/Exiles | Opened EX-Vault 2246 | -10/Exiles | Found AWS/Thermal 2279 | -10/Exiles | Warned to stay clear of 0b10 Research branches 2404 | -10/Exiles | Left Exiles lab with AWS/Thermal 2404 | -10/Exiles | Entered Mines 2783 | -9/Mines | Assembled infested the area 2963 | -9/Mines | Received a Mining Laser from a helpful Derelict 3026 | -9/Mines | Met a Derelict shopkeep closing up shop 3239 | -9/Mines | Discovered new exit (range 9) 3253 | -9/Mines | Entered Materials 3253 | -8/Materials | Evolved 4 slots: Propulsion x1, Utility x3 3254 | -8/Materials | Loaded intel: 19 interactive machine locations 3795 | -8/Materials | Destroyed 7 combat bots 3887 | -8/Materials | Crushed by falling debris 4051 | -8/Materials | Core integrity fell below 50% 4053 | -8/Materials | First assault squad dispatched 4066 | -8/Materials | Lost 4 parts (1p1n1u1w) 4088 | -8/Materials | Core integrity fell below 20% 4091 | -8/Materials | Released all parts (4) 4097 | -8/Materials | Destroyed by G-47 Trooper with Particle Gun Last Messages --------------- 04083_ Y-45 Defender destroyed. 04085_ K-01 Serf collects debris. 04089_ Y-45 Defender suffers critical hit (Blast). 04089_ Destroyed Heat Sink. 04089_ Y-45 Defender destroyed. 04090_ C-30 ARC bursts open, deploying its payload. 04090_ G-50 Soldier unfolds itself. 04090_ B-36 Bruiser unfolds itself. 04090_ G-47 Trooper unfolds itself. 04090_ I-25 Savior unfolds itself. 04090_ K-01 Serf collects debris. 04091_ Released Gauss Cannon. 04091_ Released Lrg. Storage Unit. 04091_ Released Heat Sink. 04091_ Released Imp. Deuterium Engine. 04091_ Extracted 150 matter. 04094_ Acquired 49 matter. 04094_ K-01 Serf collects debris. Map ----- +----------------------------------------------------+ | ?????????????????????????????????????????????????? | | ???"Y"???????????????????????????????????????????? | | ???"""???????????????????????????????????????????? | | ?????????????????????????????????????????????????? | | ?????????????"?"?????????????????????????????????? | | ?????????????"R"?????????????????????????????????? | | ?????????????"""?????????????????????????????????? | | ?????????????????????????????????????????????????? | | ?????????????????????????????????????????????????? | | ?????????????????????????????????????????????????? | | ??????????????????????????? ???????????????????? | | ??????????????????????????? ??????????????????? | | ??????????????????????????? ??????????????????? | | ??????????????????????????? ??????????????????? | | ??????????????????????????? #??????????????????? | | ??????????????????????????? #??????????????????? | | ???????????????""?????????# #??????????????????? | | ???????????????"T?????????" #??????????????????? | | ???????????????""?????????# #??????????????????? | | ??????????????????????????#[ ##?????????????????? | | ???????????????????###????#[[%;#?????????????????? | | ??????????????????##!######%%!#??????????????????? | | ??????????????????#[ ][!!g][i=#??? #???????????? | | ??????????????????## !!!=g=^g=# "" #???????????? | | ???????????????????# !!!%!!gb%/k S"" ????????????? | | ???????????????????# !!!=@[%[k#% "" #???????????? | | ???????????????????# =]#=**#?? *????????????? | | ???????????????????# ] [ *#* g;#???##????????????? | | ???????????????????######;# ##?????????????????? | | ???????????????????????? ## #??????????????????? | | ????????????????????# ?? # #??????????????????? | | ????????????????????# ?? ## #??????????????????? | | ????????????????????# "" ## #??????????????????? | | ????????????????????# "" ## #??????????????????? | | ????????????????????# "T ## #????????Y?????????? | | ????????????????????# "" ## #?????""???????????? | | #####???????????????# "" ## #?????""???????????? | | #?????????####### ## #?????T"???????????? | | #?????????# ###+### + ????""???????????? | | [ #?????????# # ???""???????????? | | ########### T # ???????????????? | | # ## #? ??????????????? | | # ## ###########?? ?????????????? | | # ### ##????????????####????????????? | | =# ### #?????????????????????????????? | | # #" #????????"""??????????""??????? | | # ! / # #????????"T???????????T"??????? | | # # #????????"""??????????""??????? | | #[ # #?????????????????????????????? | | ##/## ## #?????????????????????????????? | +----------------------------------------------------+ Best States ------------- Heat Dissipation 41 Energy Generation 16 Energy Capacity 290 Matter Stores 300 Matter Capacity 300 Sight Range 16 Terrain Scan Range 14 Terrain Scan Density 10 EM Shielding 2 Armor Coverage 150 Evasion (%) 44 Recoil Reduction 2 Matter Filtering 30 Item Schematics ----------------- None Robot Schematics ------------------ None Fabricated ------------ Nothing Repaired ---------- Nothing Alien Tech Used ----------------- None Achievements -------------- I Survived The Infestation Librarian Please Form A Line Power Corrupts Shopping List Challenges ------------ None Game ------ Seed BlastBombardmentScreen Manual? 0 Play Time 01:04:15 Cumulative 44.3 hours Start 2025.05.11 @ 18:22:05 End 2025.05.11 @ 19:25:34 Sessions 1 Manual Loads 0 Difficulty Rogue Special Mode None Game No. 52 Rogue 52 Adventurer 0 Explorer 0 Win Type - Total 0 Types 0/0/0/0/0/0/0/0/0/0 Lore% 13 Gallery% 24 Achievement% 12 Wizard Run 0 Options --------- Layout 1 ASCII 0 Keyboard 0 Movement Mouse Keybinds 0 Fullscreen 2 Font 32/SmallcapsGlow Map View 50x35 Zoom Use 0% Tactical HUD 1 Map Filters NONE Filters NONE Steam 1 RUN: 1eabfee5-36c3-40e9-b02e-4b6812aa182a